fUSD/lending_fUSD_20250125
["ID","MTS","AMOUNT","RATE_DAILY","PERIOD"]
[350305783,1737780656383,-859.23,0.00016986,2]
[350305784,1737780656394,-631.62,0.00016986,2]
[350305785,1737780656403,-500.0,0.00016986,2]
[350305786,1737780656413,-2214.61,0.00016986,2]
[350305787,1737780656423,-1499.56,0.00016986,2]
[350305788,1737780656435,-311.48459259,0.00016986,2]
[350305789,1737780656445,-501.66,0.00016986,2]
[350305790,1737780656455,-512.13473259,0.00016986,2]
[350305791,1737780656473,-508.9755666,0.00016986,2]
[350305792,1737780656489,-764.1,0.00016986,2]
[350305793,1737780656499,-500.0,0.00016986,2]
[350305794,1737780656508,-4434.4,0.00016986,2]
[350305795,1737780656517,-880.26,0.00016986,2]
[350305796,1737780656529,-4770.01,0.00016986,2]
[350305797,1737780656538,-510.41650089,0.00016986,2]
[350305798,1737780656547,-1286.41,0.00016986,2]
[350305799,1737780656556,-2525.92,0.00016986,2]
[350305800,1737780656567,-500.0,0.00016986,2]
[350305801,1737780656576,-617.18,0.00016986,2]
[350305802,1737780656585,-500.0,0.00016986,2]
[350305803,1737780656594,-1248.95,0.00016986,2]
[350305804,1737780656605,-1045.55,0.00016986,2]
[350305805,1737780656614,-426.37810572,0.00016986,2]
[350305806,1737780656624,-500.0,0.00016986,2]
[350305807,1737780656633,-500.0,0.00016986,2]
[350305808,1737780656643,-500.0,0.00016986,2]
[350305809,1737780656653,-509.73793653,0.00016986,2]
[350305810,1737780656662,-912.61,0.00016986,2]
[350305811,1737780656672,-2347.72,0.00016986,2]
[350305812,1737780656681,-500.0,0.00016986,2]
[350305813,1737780656691,-797.89,0.00016986,2]
[350305814,1737780656701,-2437.51,0.00016986,2]
[350305815,1737780656710,-1162.81,0.00016986,2]
[350305816,1737780656719,-407.53171092,0.00016986,2]
[350305817,1737780656729,-500.0,0.00016986,2]
[350305818,1737780656738,-500.0,0.00016986,2]
[350305819,1737780656747,-729.49,0.00016986,2]
[350305820,1737780656757,-1527.98,0.00016986,2]
[350305821,1737780656766,-1904.23,0.00016986,2]
[350305822,1737780656776,-745.81,0.00016986,2]
[350305823,1737780656786,-2478.55,0.00016986,2]
[350305824,1737780656796,-500.0,0.00016986,2]
[350305825,1737780656806,-596.99,0.00016986,2]
[350305826,1737780656816,-1748.83,0.00016986,2]
[350305827,1737780656825,-3070.29,0.00016986,2]
[350305828,1737780656835,-500.0,0.00016986,2]
[350305829,1737780656845,-500.0,0.00016986,2]
[350305830,1737780656856,-717.53,0.00016986,2]
[350305831,1737780656868,-4503.34,0.00016986,2]
[350305832,1737780656878,-893.72,0.00016986,2]
[350305833,1737780656888,-565.49369669,0.00016986,2]
[350305834,1737780656897,-500.0,0.00016986,2]
[350305835,1737780656907,-3662.54,0.00016986,2]
[350305836,1737780656917,-500.0,0.00016986,2]
[350305837,1737780657011,-660.41,0.00016986,2]
[350305838,1737780657020,-830.75,0.00016986,2]
[350305839,1737780657030,-1628.53,0.00016986,2]
[350305840,1737780657039,-500.0,0.00016986,2]
[350305841,1737780657048,-513.75463723,0.00016986,2]
[350305842,1737780657057,-2784.54,0.00016986,2]
[350305843,1737780657067,-2066.06,0.00016986,2]
[350305844,1737780657076,-500.0,0.00016986,2]
[350305845,1737780657085,-541.81,0.00016986,2]
[350305846,1737780657095,-735.03,0.00016986,2]
[350305847,1737780657104,-500.0,0.00016986,2]
[350305848,1737780657113,-500.0,0.00016986,2]
[350305849,1737780657123,-1358.49,0.00016986,2]
[350305850,1737780657132,-1231.6,0.00016986,2]
[350305851,1737780657141,-518.80442566,0.00016986,2]
[350305852,1737780657150,-204.5431948,0.00016986,2]
[350305853,1737780657159,-1298.51,0.00016986,2]
[350305854,1737780657169,-500.0,0.00016986,2]
[350305855,1737780657179,-500.0,0.00016986,2]
[350305856,1737780657189,-2450.52,0.00016986,2]
[350305857,1737780657199,-659.41,0.00016986,2]
[350305858,1737780657208,-3853.39,0.00016986,2]
[350305859,1737780657218,-500.0,0.00016986,2]
[350305860,1737780657227,-500.0,0.00016986,2]
[350305861,1737780657236,-964.84,0.00016986,2]
[350305862,1737780657246,-1262.53,0.00016986,2]
[350305863,1737780657255,-1240.26,0.00016986,2]
[350305864,1737780657265,-500.0,0.00016986,2]
[350305865,1737780657275,-883.14,0.00016986,2]
[350305866,1737780657284,-500.0,0.00016986,2]
[350305867,1737780657293,-783.95,0.00016986,2]
[350305868,1737780657303,-500.0,0.00016986,2]
[350305869,1737780657312,-500.0,0.00016986,2]
[350305870,1737780657322,-957.39,0.00016986,2]
[350305871,1737780657331,-791.69,0.00016986,2]
[350305872,1737780657341,-854.55,0.00016986,2]
[350305873,1737780657351,-1363.36,0.00016986,2]
[350305874,1737780657360,-500.0,0.00016986,2]
[350305875,1737780657369,-500.0,0.00016986,2]
[350305876,1737780657379,-500.0,0.00016986,2]
[350305877,1737780657389,-500.0,0.00016986,2]
[350305878,1737780657399,-500.0,0.00016986,2]
[350305879,1737780657408,-3755.43,0.00016986,2]
[350305880,1737780657418,-500.0,0.00016986,2]
[350305881,1737780657427,-500.0,0.00016986,2]
[350305882,1737780657437,-783.97,0.00016986,2]
[350305883,1737780657448,-1669.05,0.00016986,2]
[350305884,1737780657457,-648.38,0.00016986,2]
[350305885,1737780657467,-500.0,0.00016986,2]
[350305886,1737780657477,-880.32,0.00016986,2]
[350305887,1737780657487,-783.6,0.00016986,2]
[350305888,1737780657497,-541.22,0.00016986,2]
[350305889,1737780657507,-500.0,0.00016986,2]
[350305890,1737780657516,-500.0,0.00016986,2]
[350305891,1737780657530,-500.0,0.00016986,2]
[350305892,1737780657539,-631.42,0.00017047,2]
[350305893,1737780657548,-655.57,0.00017047,2]
[350305894,1737780657558,-883.17,0.00017047,2]
[350305895,1737780657568,-1126.94,0.00017047,2]
[350305896,1737780657579,-1212.78,0.00017047,2]
[350305897,1737780657589,-3128.26,0.00017047,2]
[350305898,1737780657599,-6082.89,0.00017047,2]
[350305899,1737780657608,-996.63,0.00017047,2]
[350305900,1737780657618,-770.51,0.00017047,2]
[350305901,1737780657628,-2173.77,0.00017047,2]
[350305902,1737780657638,-500.0,0.00017047,2]
[350305903,1737780657647,-788.44,0.00017047,2]
[350305904,1737780657656,-1064.43,0.00017047,2]
[350305905,1737780657666,-1714.38,0.00017047,2]
[350305906,1737780657675,-500.0,0.00017047,2]
[350305907,1737780657685,-1000.0,0.00017047,2]
[350305908,1737780657694,-1311.29,0.00017047,2]
[350305909,1737780657704,-544.74,0.00017047,2]
[350305910,1737780657714,-2088.26,0.00017047,2]
[350305911,1737780657724,-2022.35,0.00017047,2]
[350305912,1737780657734,-250.0,0.000171,2]
[350305913,1737780657743,-250.0,0.000171,2]
[350305914,1737780657753,-250.0,0.000171,2]
[350305915,1737780657763,-250.0,0.000171,2]
[350305916,1737780657772,-250.0,0.000171,2]
[350305917,1737780657782,-250.0,0.000171,2]
[350305918,1737780657791,-250.0,0.000171,2]
[350305919,1737780657800,-250.0,0.000171,2]
[350305920,1737780657810,-250.0,0.000171,2]
[350305921,1737780657819,-250.0,0.000171,2]
[350305922,1737780657829,-250.0,0.000171,2]
[350305923,1737780657838,-250.0,0.000171,2]
[350305924,1737780657847,-250.0,0.000171,2]
[350305925,1737780657857,-250.0,0.000171,2]
[350305926,1737780657866,-250.0,0.000171,2]
[350305927,1737780657876,-250.0,0.000171,2]
[350305928,1737780657885,-250.0,0.000171,2]
[350305929,1737780657895,-250.0,0.000171,2]
[350305930,1737780657905,-250.0,0.000171,2]
[350305931,1737780657915,-250.0,0.000171,2]
[350305932,1737780657924,-250.0,0.000171,2]
[350305933,1737780657933,-250.0,0.000171,2]
[350305934,1737780657943,-250.0,0.000171,2]
[350305935,1737780657952,-250.0,0.000171,2]
[350305936,1737780657961,-250.0,0.000171,2]
[350305937,1737780657971,-251.5,0.000171,2]
[350305938,1737780657980,-1000.0,0.00017121,2]
[350305939,1737780657989,-585.62,0.00017122,2]
[350305940,1737780657998,-500.0,0.00017122,2]
[350305941,1737780658008,-694.69,0.00017122,2]
[350305942,1737780658018,-500.0,0.00017123,2]
[350305943,1737780658028,-500.0,0.00017123,2]
[350305944,1737780658038,-500.0,0.00017123,2]
[350305945,1737780658048,-500.0,0.00017123,2]
[350305946,1737780658057,-500.0,0.00017123,2]
[350305947,1737780658067,-500.0,0.00017123,2]
[350305948,1737780658078,-500.0,0.00017123,2]
[350305949,1737780658087,-500.0,0.00017123,2]
[350305950,1737780658096,-500.0,0.00017123,2]
[350305951,1737780658105,-500.0,0.00017123,2]
[350305952,1737780658114,-500.0,0.00017123,2]
[350305953,1737780658124,-500.0,0.00017123,2]
[350305954,1737780658134,-500.0,0.00017123,2]
[350305955,1737780658143,-500.0,0.00017123,2]
[350305956,1737780658153,-500.0,0.00017123,2]
[350305957,1737780658163,-552.37,0.00017123,2]
[350305958,1737780658172,-746.74,0.00017123,2]
[350305959,1737780658182,-500.0,0.00017123,2]
[350305960,1737780658192,-500.0,0.00017123,2]
[350305961,1737780658202,-500.0,0.00017123,2]
[350305962,1737780658211,-500.0,0.00017123,2]
[350305963,1737780658220,-623.71,0.00017123,2]
[350305964,1737780658229,-560.1,0.00017123,2]
[350305965,1737780658239,-500.0,0.00017123,2]
[350305966,1737780658248,-500.0,0.00017123,2]
[350305967,1737780658257,-500.0,0.00017123,2]
[350305968,1737780658267,-500.0,0.00017123,2]
[350305969,1737780658276,-500.0,0.00017123,2]
[350305970,1737780658287,-500.0,0.00017123,2]
[350305971,1737780658297,-500.0,0.00017123,2]
[350305972,1737780658387,-500.0,0.00017123,2]
[350305973,1737780658397,-500.0,0.00017123,2]
[350305974,1737780658408,-500.0,0.00017123,2]
[350305975,1737780658417,-500.0,0.00017123,2]
[350305976,1737780658427,-156.187301,0.00017123,2]
[350305977,1737780658437,-531.14,0.00017123,2]
[350305978,1737780658446,-500.0,0.00017123,2]
[350305979,1737780658456,-602.85,0.00017123,2]
[350305980,1737780658466,-500.0,0.00017123,2]
[350305981,1737780658475,-500.0,0.00017123,2]
[350305982,1737780658484,-500.0,0.00017123,2]
[350305983,1737780658493,-519.05041613,0.00017123,2]
[350305984,1737780658503,-500.0,0.00017123,2]
[350305985,1737780658512,-594.18,0.00017123,2]
[350305986,1737780658523,-500.0,0.00017123,2]
[350305987,1737780658534,-500.0,0.00017123,2]
[350305988,1737780658544,-560.27,0.00017123,2]
[350305989,1737780658554,-500.0,0.00017123,2]
[350305990,1737780658563,-562.5,0.00017123,2]
[350305991,1737780658574,-500.0,0.00017123,2]
[350305992,1737780658583,-567.73,0.00017123,2]
[350305993,1737780658593,-500.0,0.00017123,2]
[350305994,1737780658603,-500.0,0.00017123,2]
[350305995,1737780658613,-500.0,0.00017123,2]
[350305996,1737780658623,-500.0,0.00017123,2]
[350305997,1737780658632,-550.16,0.00017123,2]
[350305998,1737780658641,-500.0,0.00017123,2]
[350305999,1737780658651,-614.67,0.00017123,2]
[350306000,1737780658660,-500.0,0.00017123,2]
[350306001,1737780658670,-500.0,0.00017123,2]
[350306002,1737780658679,-500.0,0.00017123,2]
[350306003,1737780658689,-666.81,0.00017123,2]
[350306004,1737780658699,-500.0,0.00017123,2]
[350306005,1737780658709,-500.0,0.00017123,2]
[350306006,1737780658718,-500.0,0.00017123,2]
[350306007,1737780658728,-500.0,0.00017123,2]
[350306008,1737780658737,-506.56,0.00017123,2]
[350306009,1737780658747,-500.0,0.00017123,2]
[350306010,1737780658756,-150.56362697,0.00017123,2]
[350306011,1737780658765,-500.0,0.00017123,2]
[350306012,1737780658775,-594.67,0.00017123,2]
[350306013,1737780658784,-500.0,0.00017123,2]
[350306014,1737780658794,-500.0,0.00017123,2]
[350306015,1737780658804,-589.07,0.00017123,2]
[350306016,1737780658813,-500.0,0.00017123,2]
[350306017,1737780658823,-500.0,0.00017123,2]
[350306018,1737780658832,-500.0,0.00017123,2]
[350306019,1737780658842,-554.24,0.00017123,2]
[350306020,1737780658852,-914.03,0.00017123,2]
[350306021,1737780658861,-612.3229895,0.00017123,2]
[350306022,1737780658870,-728.54,0.00017123,2]
[350306023,1737780658879,-566.01,0.00017123,2]
[350306024,1737780658889,-500.0,0.00017123,2]
[350306025,1737780658899,-621.9,0.00017123,2]
[350306026,1737780658908,-500.0,0.00017123,2]
[350306027,1737780658918,-500.0,0.00017123,2]
[350306028,1737780658932,-2348.33,0.00017123,2]
[350306029,1737780658941,-178.45639282,0.00017123,2]
[350306030,1737780658951,-3825.28,0.00017123,2]
[350306031,1737780658960,-500.0,0.00017123,2]
[350306032,1737780658970,-1272.56,0.00017123,2]
[350306033,1737780658979,-903.33,0.00017123,2]
[350306034,1737780658990,-500.0,0.00017123,2]
[350306035,1737780659000,-600.69,0.00017123,2]
[350306036,1737780659011,-2002.96,0.00017123,2]
[350306037,1737780659021,-500.0,0.00017123,2]
[350306038,1737780659030,-1031.41,0.00017123,2]
[350306039,1737780659039,-500.0,0.00017123,2]
[350306040,1737780659049,-500.0,0.00017123,2]
[350306041,1737780659058,-500.0,0.00017123,2]
[350306042,1737780659069,-1165.45,0.00017123,2]
[350306043,1737780659079,-811.7,0.00017123,2]
[350306044,1737780659088,-563.79,0.00017123,2]
[350306045,1737780659098,-810.68,0.00017123,2]
[350306046,1737780659107,-2254.04,0.00017123,2]
[350306047,1737780659117,-500.0,0.00017123,2]
[350306048,1737780659126,-500.0,0.00017123,2]
[350306049,1737780659136,-500.0,0.00017123,2]
[350306050,1737780659146,-216.9,0.00017123,2]
[350306051,1737780659155,-500.0,0.00017123,2]
[350306052,1737780659164,-768.27,0.00017123,2]
[350306053,1737780659174,-507.96739667,0.00017123,2]
[350306054,1737780659183,-1204.31,0.00017123,2]
[350306055,1737780659193,-1676.36,0.00017123,2]
[350306056,1737780659202,-900.82,0.00017123,2]
[350306057,1737780659212,-1031.26,0.00017123,2]
[350306058,1737780659221,-500.0,0.00017123,2]
[350306059,1737780659231,-500.0,0.00017123,2]
[350306060,1737780659241,-160.16722,0.00017123,2]
[350306061,1737780659250,-2605.78,0.00017123,2]
[350306062,1737780659260,-3652.55,0.00017123,2]
[350306063,1737780659269,-855.5,0.00017123,2]
[350306064,1737780659279,-887.32,0.00017123,2]
[350306065,1737780659288,-878.97,0.00017123,2]
[350306066,1737780659298,-2371.04,0.00017123,2]
[350306067,1737780659307,-500.0,0.00017123,2]
[350306068,1737780659317,-500.0,0.00017123,2]
[350306069,1737780659326,-1435.2,0.00017123,2]
[350306070,1737780659335,-500.0,0.00017123,2]
[350306071,1737780659344,-1256.16,0.00017123,2]
[350306072,1737780659354,-859.23,0.00017123,2]
[350306073,1737780659363,-631.62,0.00017123,2]
[350306074,1737780659373,-500.0,0.00017123,2]
[350306075,1737780659382,-2214.61,0.00017123,2]
[350306076,1737780659391,-1499.56,0.00017123,2]
[350306077,1737780659401,-501.66,0.00017123,2]
[350306078,1737780659411,-764.1,0.00017123,2]
[350306079,1737780659420,-500.0,0.00017123,2]
[350306080,1737780659430,-4434.4,0.00017123,2]
[350306081,1737780659439,-880.26,0.00017123,2]
[350306082,1737780659450,-4770.01,0.00017123,2]
[350306083,1737780659459,-1286.41,0.00017123,2]
[350306084,1737780659470,-2525.92,0.00017123,2]
[350306085,1737780659480,-500.0,0.00017123,2]
[350306086,1737780659492,-617.18,0.00017123,2]
[350306087,1737780659503,-500.0,0.00017123,2]
[350306088,1737780659513,-1248.95,0.00017123,2]
[350306089,1737780659525,-1045.55,0.00017123,2]
[350306090,1737780659535,-500.0,0.00017123,2]
[350306091,1737780659545,-500.0,0.00017123,2]
[350306092,1737780659556,-500.0,0.00017123,2]
[350306093,1737780659566,-912.61,0.00017123,2]
[350306094,1737780659576,-500.0,0.00017123,2]
[350306095,1737780659586,-2347.72,0.00017123,2]
[350306096,1737780659672,-797.89,0.00017123,2]
[350306097,1737780659682,-2437.51,0.00017123,2]
[350306098,1737780659691,-1162.81,0.00017123,2]
[350306099,1737780659702,-500.0,0.00017123,2]
[350306100,1737780659711,-500.0,0.00017123,2]
[350306101,1737780659720,-729.49,0.00017123,2]
[350306102,1737780659730,-1527.98,0.00017123,2]
[350306103,1737780659739,-1904.23,0.00017123,2]
[350306104,1737780659749,-745.81,0.00017123,2]
[350306105,1737780659759,-2478.55,0.00017123,2]
[350306106,1737780659769,-500.0,0.00017123,2]
[350306107,1737780659779,-596.99,0.00017123,2]
[350306108,1737780659789,-1748.83,0.00017123,2]
[350306109,1737780659799,-3070.29,0.00017123,2]
[350306110,1737780659808,-500.0,0.00017123,2]
[350306111,1737780659818,-500.0,0.00017123,2]
[350306112,1737780659827,-717.53,0.00017123,2]
[350306113,1737780659836,-4503.34,0.00017123,2]
[350306114,1737780659846,-893.72,0.00017123,2]
[350306115,1737780659856,-500.0,0.00017123,2]
[350306116,1737780659867,-3662.54,0.00017123,2]
[350306117,1737780659876,-500.0,0.00017123,2]
[350306118,1737780659886,-660.41,0.00017123,2]
[350306119,1737780659895,-830.75,0.00017123,2]
[350306120,1737780659906,-1628.53,0.00017123,2]
[350306121,1737780659915,-2784.54,0.00017123,2]
[350306122,1737780659925,-2066.06,0.00017123,2]
[350306123,1737780659934,-500.0,0.00017123,2]
[350306124,1737780659945,-541.81,0.00017123,2]
[350306125,1737780659956,-735.03,0.00017123,2]
[350306126,1737780659966,-500.0,0.00017123,2]
[350306127,1737780659975,-500.0,0.00017123,2]
[350306128,1737780659985,-1358.49,0.00017123,2]
[350306129,1737780659995,-1231.6,0.00017123,2]
[350306130,1737780660004,-1298.51,0.00017123,2]
[350306131,1737780660013,-500.0,0.00017123,2]
[350306132,1737780660023,-500.0,0.00017123,2]
[350306133,1737780660033,-2450.52,0.00017123,2]
[350306134,1737780660042,-659.41,0.00017123,2]
[350306135,1737780660052,-3853.39,0.00017123,2]
[350306136,1737780660062,-500.0,0.00017123,2]
[350306137,1737780660072,-500.0,0.00017123,2]
[350306138,1737780660082,-964.84,0.00017123,2]
[350306139,1737780660092,-1262.53,0.00017123,2]
[350306140,1737780660102,-1240.26,0.00017123,2]
[350306141,1737780660111,-500.0,0.00017123,2]
[350306142,1737780660121,-883.14,0.00017123,2]
[350306143,1737780660130,-500.0,0.00017123,2]
[350306144,1737780660140,-783.95,0.00017123,2]
[350306145,1737780660149,-500.0,0.00017123,2]
[350306146,1737780660159,-500.0,0.00017123,2]
[350306147,1737780660169,-957.39,0.00017123,2]
[350306148,1737780660179,-791.69,0.00017123,2]
[350306149,1737780660189,-854.55,0.00017123,2]
[350306150,1737780660202,-1363.36,0.00017123,2]
[350306151,1737780660212,-500.0,0.00017123,2]
[350306152,1737780660231,-500.0,0.00017123,2]
[350306153,1737780660248,-500.0,0.00017123,2]
[350306154,1737780660271,-500.0,0.00017123,2]
[350306155,1737780660291,-517.61003329,0.00017123,2]
[350306156,1737780660307,-3755.43,0.00017123,2]
[350306157,1737780660327,-500.0,0.00017123,2]
[350306158,1737780660347,-783.97,0.00017123,2]
[350306159,1737780660368,-500.0,0.00017123,2]
[350306160,1737780660385,-1669.05,0.00017123,2]
[350306161,1737780660403,-648.38,0.00017123,2]
[350306162,1737780660423,-500.0,0.00017123,2]
[350306163,1737780660438,-880.32,0.00017123,2]
[350306164,1737780660459,-783.6,0.00017123,2]
[350306165,1737780660473,-541.22,0.00017123,2]
[350306166,1737780660490,-500.0,0.00017123,2]
[350306167,1737780660505,-500.0,0.00017123,2]
[350306168,1737780660521,-500.0,0.00017123,2]
[350306169,1737780660538,-631.42,0.00017184,2]
[350306170,1737780660553,-655.57,0.00017184,2]
[350306171,1737780660568,-883.17,0.00017184,2]
[350306172,1737780660584,-1126.94,0.00017184,2]
[350306173,1737780660600,-1212.78,0.00017184,2]
[350306174,1737780660615,-3128.26,0.00017184,2]
[350306175,1737780660630,-6082.89,0.00017184,2]
[350306176,1737780660645,-996.63,0.00017184,2]
[350306177,1737780660660,-770.51,0.00017184,2]
[350306178,1737780660675,-2173.77,0.00017184,2]
[350306179,1737780660689,-500.0,0.00017184,2]
[350306180,1737780660707,-788.44,0.00017184,2]
[350306181,1737780660724,-1064.43,0.00017184,2]
[350306182,1737780660740,-1714.38,0.00017184,2]
[350306183,1737780660755,-500.0,0.00017184,2]
[350306184,1737780660770,-1000.0,0.00017184,2]
[350306185,1737780660787,-1311.29,0.00017184,2]
[350306186,1737780660801,-544.74,0.00017184,2]
[350306187,1737780660816,-2088.26,0.00017184,2]
[350306188,1737780660831,-2022.35,0.00017184,2]
[350306189,1737780660846,-513.63431958,0.0001721,2]
[350306190,1737780660861,-585.62,0.00017259,2]
[350306191,1737780660876,-500.0,0.00017259,2]
[350306192,1737780660891,-694.69,0.00017259,2]
[350306193,1737780660907,-257.17326954,0.0001726,2]
[350306194,1737780660923,-250.73029633,0.0001726,2]
[350306195,1737780660937,-500.0,0.0001726,2]
[350306196,1737780660954,-500.0,0.0001726,2]
[350306197,1737780660986,-500.0,0.0001726,2]
[350306198,1737780661009,-500.0,0.0001726,2]
[350306199,1737780661028,-500.0,0.0001726,2]
[350306200,1737780661047,-500.0,0.0001726,2]
[350306201,1737780661065,-500.0,0.0001726,2]
[350306202,1737780661080,-500.0,0.0001726,2]
[350306203,1737780661098,-335.6237709,0.0001726,2]
[350306204,1737780661113,-500.0,0.0001726,2]
[350306205,1737780661129,-500.0,0.0001726,2]
[350306206,1737780661145,-500.0,0.0001726,2]
[350306207,1737780661161,-500.0,0.0001726,2]
[350306208,1737780661177,-552.37,0.0001726,2]
[350306209,1737780661192,-746.74,0.0001726,2]
[350306210,1737780661327,-500.0,0.0001726,2]
[350306211,1737780661338,-500.0,0.0001726,2]
[350306212,1737780661348,-500.0,0.0001726,2]
[350306213,1737780661357,-623.71,0.0001726,2]
[350306214,1737780661366,-560.1,0.0001726,2]
[350306215,1737780661376,-500.0,0.0001726,2]
[350306216,1737780661385,-500.0,0.0001726,2]
[350306217,1737780661395,-500.0,0.0001726,2]
[350306218,1737780661406,-500.0,0.0001726,2]
[350306219,1737780661415,-500.0,0.0001726,2]
[350306220,1737780661425,-500.0,0.0001726,2]
[350306221,1737780661435,-500.0,0.0001726,2]
[350306222,1737780661446,-500.0,0.0001726,2]
[350306223,1737780661456,-500.0,0.0001726,2]
[350306224,1737780661466,-500.0,0.0001726,2]
[350306225,1737780661475,-489.34811636,0.0001726,2]
[350306226,1737780661485,-531.14,0.0001726,2]
[350306227,1737780661495,-500.0,0.0001726,2]
[350306228,1737780661505,-602.85,0.0001726,2]
[350306229,1737780661514,-500.0,0.0001726,2]
[350306230,1737780661524,-500.0,0.0001726,2]
[350306231,1737780661536,-500.0,0.0001726,2]
[350306232,1737780661546,-500.0,0.0001726,2]
[350306233,1737780661555,-594.18,0.0001726,2]
[350306234,1737780661565,-500.0,0.0001726,2]
[350306235,1737780661574,-500.0,0.0001726,2]
[350306236,1737780661583,-560.27,0.0001726,2]
[350306237,1737780661593,-500.0,0.0001726,2]
[350306238,1737780661602,-562.5,0.0001726,2]
[350306239,1737780661612,-500.0,0.0001726,2]
[350306240,1737780661622,-567.73,0.0001726,2]
[350306241,1737780661631,-500.0,0.0001726,2]
[350306242,1737780661640,-500.0,0.0001726,2]
[350306243,1737780661650,-500.0,0.0001726,2]
[350306244,1737780661659,-405.38590909,0.0001726,2]
[350306245,1737780661668,-550.16,0.0001726,2]
[350306246,1737780661678,-500.0,0.0001726,2]
[350306247,1737780661688,-614.67,0.0001726,2]
[350306248,1737780661697,-500.0,0.0001726,2]
[350306249,1737780661708,-500.0,0.0001726,2]
[350306250,1737780661718,-500.0,0.0001726,2]
[350306251,1737780661727,-666.81,0.0001726,2]
[350306252,1737780661736,-500.0,0.0001726,2]
[350306253,1737780661746,-500.0,0.0001726,2]
[350306254,1737780661755,-500.0,0.0001726,2]
[350306255,1737780661764,-457.76661835,0.0001726,2]
[350306256,1737780661775,-506.56,0.0001726,2]
[350306257,1737780661784,-500.0,0.0001726,2]
[350306258,1737780661793,-500.0,0.0001726,2]
[350306259,1737780661803,-594.67,0.0001726,2]
[350306260,1737780661812,-500.0,0.0001726,2]
[350306261,1737780661821,-500.0,0.0001726,2]
[350306262,1737780661830,-589.07,0.0001726,2]
[350306263,1737780661840,-500.0,0.0001726,2]
[350306264,1737780661849,-500.0,0.0001726,2]
[350306265,1737780661858,-500.0,0.0001726,2]
[350306266,1737780661868,-554.24,0.0001726,2]
[350306267,1737780661877,-914.03,0.0001726,2]
[350306268,1737780661887,-728.54,0.0001726,2]
[350306269,1737780661896,-566.01,0.0001726,2]
[350306270,1737780661907,-500.0,0.0001726,2]
[350306271,1737780661917,-621.9,0.0001726,2]
[350306272,1737780661926,-500.0,0.0001726,2]
[350306273,1737780661936,-500.0,0.0001726,2]
[350306274,1737780661946,-2348.33,0.0001726,2]
[350306275,1737780661956,-3825.28,0.0001726,2]
[350306276,1737780661965,-440.0,0.0001726,2]
[350306277,1737780661975,-1272.56,0.0001726,2]
[350306278,1737780661984,-903.33,0.0001726,2]
[350306279,1737780661994,-500.0,0.0001726,2]
[350306280,1737780662003,-600.69,0.0001726,2]
[350306281,1737780662013,-2002.96,0.0001726,2]
[350306282,1737780662022,-515.74667127,0.0001726,2]